[Event "*** SCC Grand Prix: Titled Tuesday Blitz"]
[Site "Chess.com"]
[Date "2020.09.08"]
[Round "6"]
[White "gmpeter008"]
[Black "Ranindu2003"]
[Result "1-0"]
[WhiteElo "2364"]
[BlackElo "2536"]
[TimeControl "180+1"]
[EndTime "11:07:57 PDT"]
[Termination "gmpeter008 won on time"]

1. e4 {[%clk 0:03:00.9]} 1... e5 {[%clk 0:02:57.9]} 2. Nf3 {[%clk 0:03:00.6]}
2... Nc6 {[%clk 0:02:56.6]} 3. Bb5 {[%clk 0:03:00.7]} 3... a6 {[%clk 0:02:54.9]}
4. Ba4 {[%clk 0:03:01]} 4... Nf6 {[%clk 0:02:54.7]} 5. O-O {[%clk 0:03:00.6]}
5... b5 {[%clk 0:02:54.7]} 6. Bb3 {[%clk 0:03:00.5]} 6... Bc5 {[%clk 0:02:55.4]}
7. d3 {[%clk 0:02:58.9]} 7... d6 {[%clk 0:02:54.3]} 8. Nc3 {[%clk 0:02:58.4]}
8... h6 {[%clk 0:02:52.6]} 9. Be3 {[%clk 0:02:58.3]} 9... O-O {[%clk 0:02:49.3]}
10. Nd5 {[%clk 0:02:58.2]} 10... Rb8 {[%clk 0:02:38.6]} 11. a4 {[%clk
0:02:53.3]} 11... Bg4 {[%clk 0:02:29.1]} 12. h3 {[%clk 0:02:47.3]} 12... Be6
{[%clk 0:02:22.6]} 13. axb5 {[%clk 0:02:44.8]} 13... axb5 {[%clk 0:02:21.6]} 14.
Ra6 {[%clk 0:02:36.2]} 14... Nd4 {[%clk 0:02:03.6]} 15. Bxd4 {[%clk 0:02:30.7]}
15... exd4 {[%clk 0:02:01.5]} 16. Nf4 {[%clk 0:02:23.3]} 16... Bxb3 {[%clk
0:01:59.8]} 17. cxb3 {[%clk 0:02:22.6]} 17... Ra8 {[%clk 0:01:56.7]} 18. Qa1
{[%clk 0:02:21]} 18... Qc8 {[%clk 0:01:51.1]} 19. Rxa8 {[%clk 0:02:19.8]} 19...
Qxa8 {[%clk 0:01:52]} 20. Qc1 {[%clk 0:02:16]} 20... Qa7 {[%clk 0:01:36.7]} 21.
Nh4 {[%clk 0:02:10.5]} 21... Qa2 {[%clk 0:01:28.8]} 22. b4 {[%clk 0:01:14.6]}
22... Bxb4 {[%clk 0:01:24]} 23. Nf5 {[%clk 0:01:10.6]} 23... Bc5 {[%clk
0:01:14.4]} 24. b4 {[%clk 0:01:06.7]} 24... Bb6 {[%clk 0:01:11.3]} 25. Qc6
{[%clk 0:01:02.8]} 25... Qa4 {[%clk 0:01:03.5]} 26. Rb1 {[%clk 0:00:35.9]} 26...
Ra8 {[%clk 0:01:00.3]} 27. g4 {[%clk 0:00:29]} 27... Qa2 {[%clk 0:00:56.7]} 28.
Re1 {[%clk 0:00:27.2]} 28... Ra3 {[%clk 0:00:54]} 29. Qb7 {[%clk 0:00:19.6]}
29... Qd2 {[%clk 0:00:48.9]} 30. Qc8+ {[%clk 0:00:17.4]} 30... Kh7 {[%clk
0:00:49.1]} 31. Qf8 {[%clk 0:00:13.8]} 31... Ne8 {[%clk 0:00:30.4]} 32. Ne7
{[%clk 0:00:04.8]} 32... Nf6 {[%clk 0:00:18.4]} 33. Nh5 {[%clk 0:00:04.6]} 33...
Qxe1+ {[%clk 0:00:14.1]} 34. Kg2 {[%clk 0:00:05.1]} 34... Ra8 {[%clk 0:00:06.4]}
35. Qxa8 {[%clk 0:00:04]} 1-0

[Event "*** SCC Grand Prix: Titled Tuesday Blitz"]
[Site "Chess.com"]
[Date "2020.09.08"]
[Round "6"]
[White "Kaua18"]
[Black "DrMamaliga"]
[Result "0-1"]
[WhiteElo "2310"]
[BlackElo "2206"]
[TimeControl "180+1"]
[EndTime "11:08:01 PDT"]
[Termination "DrMamaliga won on time"]

1. e4 {[%clk 0:03:00.9]} 1... e5 {[%clk 0:02:59.3]} 2. Nf3 {[%clk 0:03:01.2]}
2... Nc6 {[%clk 0:02:59.8]} 3. d4 {[%clk 0:02:59.6]} 3... exd4 {[%clk
0:02:58.8]} 4. Nxd4 {[%clk 0:03:00.5]} 4... Nf6 {[%clk 0:02:58.7]} 5. Nxc6
{[%clk 0:02:59.9]} 5... bxc6 {[%clk 0:02:59.6]} 6. e5 {[%clk 0:03:00.6]} 6...
Qe7 {[%clk 0:02:59.9]} 7. Qe2 {[%clk 0:03:00.2]} 7... Nd5 {[%clk 0:03:00.4]} 8.
c4 {[%clk 0:03:00.7]} 8... Nb6 {[%clk 0:02:58.5]} 9. b3 {[%clk 0:02:58.9]} 9...
a5 {[%clk 0:02:58]} 10. h4 {[%clk 0:02:54.9]} 10... a4 {[%clk 0:02:55.3]} 11.
Bg5 {[%clk 0:02:49.8]} 11... Qe6 {[%clk 0:02:50.6]} 12. Nd2 {[%clk 0:02:38.3]}
12... axb3 {[%clk 0:02:49.6]} 13. Nxb3 {[%clk 0:02:37.5]} 13... Ba6 {[%clk
0:02:50.1]} 14. Rc1 {[%clk 0:02:35.8]} 14... h6 {[%clk 0:02:47.8]} 15. Bd2
{[%clk 0:02:30.4]} 15... Ba3 {[%clk 0:02:46.5]} 16. Rc3 {[%clk 0:02:29.7]} 16...
O-O {[%clk 0:02:45.4]} 17. Rhh3 {[%clk 0:02:29.2]} 17... Rfe8 {[%clk 0:02:42.7]}
18. Rhe3 {[%clk 0:02:24.8]} 18... Qg6 {[%clk 0:02:39.8]} 19. Nc1 {[%clk
0:02:11.3]} 19... Bb4 {[%clk 0:02:35.5]} 20. Rg3 {[%clk 0:02:03.4]} 20... Qb1
{[%clk 0:02:29.2]} 21. Qg4 {[%clk 0:01:49.6]} 21... g6 {[%clk 0:02:13]} 22. Bd3
{[%clk 0:01:47.5]} 22... Rxe5+ {[%clk 0:02:09.4]} 23. Kd1 {[%clk 0:01:41.3]}
23... Qa1 {[%clk 0:02:02.9]} 24. Bxg6 {[%clk 0:01:39.9]} 24... Bxc3 {[%clk
0:01:46]} 25. Bxf7+ {[%clk 0:01:00.8]} 25... Kxf7 {[%clk 0:01:39.6]} 26. Rf3+
{[%clk 0:00:45.4]} 26... Ke7 {[%clk 0:01:32.8]} 27. Bxc3 {[%clk 0:00:40.6]}
27... Re1+ {[%clk 0:01:23]} 28. Bxe1 {[%clk 0:00:39.4]} 28... Bxc4 {[%clk
0:01:22.3]} 29. Re3+ {[%clk 0:00:20.5]} 29... Be6 {[%clk 0:01:22.1]} 30. Qb4+
{[%clk 0:00:14.2]} 30... Ke8 {[%clk 0:01:15.2]} 31. Bc3 {[%clk 0:00:14.2]} 31...
Ra4 {[%clk 0:01:15.2]} 32. Qxa4 {[%clk 0:00:08.8]} 32... Qxc1+ {[%clk
0:01:10.3]} 33. Kxc1 {[%clk 0:00:09.7]} 33... Nxa4 {[%clk 0:01:10.9]} 34. Bg7
{[%clk 0:00:08.4]} 34... h5 {[%clk 0:01:10.1]} 35. f4 {[%clk 0:00:08.9]} 35...
Kf7 {[%clk 0:01:10]} 36. Be5 {[%clk 0:00:08.4]} 36... d6 {[%clk 0:01:08.8]} 37.
Bd4 {[%clk 0:00:08.7]} 37... Bxa2 {[%clk 0:01:08.7]} 38. Ra3 {[%clk 0:00:07.2]}
38... c5 {[%clk 0:01:07.5]} 39. Rxa2 {[%clk 0:00:05.1]} 39... Nb6 {[%clk
0:01:05.6]} 40. Be3 {[%clk 0:00:04.3]} 40... Nc4 {[%clk 0:01:05.7]} 41. Bd2
{[%clk 0:00:03.3]} 41... Kf6 {[%clk 0:01:02.8]} 42. Ra7 {[%clk 0:00:04.2]} 42...
c6 {[%clk 0:01:00.3]} 43. Rh7 {[%clk 0:00:05.1]} 43... Kg6 {[%clk 0:01:00]} 44.
Rd7 {[%clk 0:00:04.9]} 44... d5 {[%clk 0:00:59.3]} 45. Bc3 {[%clk 0:00:03.7]}
45... Kf5 {[%clk 0:00:58.1]} 46. Rf7+ {[%clk 0:00:03.3]} 46... Kg4 {[%clk
0:00:57.7]} 47. Kc2 {[%clk 0:00:03.3]} 47... Ne3+ {[%clk 0:00:56.7]} 48. Kd3
{[%clk 0:00:03.3]} 48... Nf5 {[%clk 0:00:57.6]} 49. Ke2 {[%clk 0:00:02.8]} 49...
c4 {[%clk 0:00:57.8]} 50. Rxf5 {[%clk 0:00:02.9]} 50... Kxf5 {[%clk 0:00:57.9]}
51. Be5 {[%clk 0:00:03.8]} 51... c5 {[%clk 0:00:57.8]} 52. Kd2 {[%clk
0:00:04.7]} 52... d4 {[%clk 0:00:58]} 53. Kc2 {[%clk 0:00:05.1]} 53... Ke4
{[%clk 0:00:58.4]} 54. Kd2 {[%clk 0:00:05.3]} 54... c3+ {[%clk 0:00:58]} 55. Kc2
{[%clk 0:00:05.7]} 55... c4 {[%clk 0:00:56.4]} 56. g3 {[%clk 0:00:04.7]} 56...
Ke3 {[%clk 0:00:51.2]} 57. Bd6 {[%clk 0:00:02.2]} 57... Ke2 {[%clk 0:00:49.4]}
58. Kc1 {[%clk 0:00:01.3]} 58... d3 {[%clk 0:00:49.2]} 0-1

[Event "*** SCC Grand Prix: Titled Tuesday Blitz"]
[Site "Chess.com"]
[Date "2020.09.08"]
[Round "6"]
[White "StellarChessPro"]
[Black "valeriocarnicelli"]
[Result "0-1"]
[WhiteElo "2266"]
[BlackElo "2476"]
[TimeControl "180+1"]
[EndTime "11:08:02 PDT"]
[Termination "valeriocarnicelli won by resignation"]

1. b3 {[%clk 0:03:00.9]} 1... e5 {[%clk 0:02:59.7]} 2. Bb2 {[%clk 0:03:01.2]}
2... Nc6 {[%clk 0:03:00]} 3. e3 {[%clk 0:03:01.9]} 3... g6 {[%clk 0:02:58.8]} 4.
Bb5 {[%clk 0:03:02.2]} 4... Bg7 {[%clk 0:02:58.8]} 5. f4 {[%clk 0:03:02.6]} 5...
d6 {[%clk 0:02:55]} 6. Nf3 {[%clk 0:03:01]} 6... Ne7 {[%clk 0:02:54.9]} 7. fxe5
{[%clk 0:03:00]} 7... O-O {[%clk 0:02:54.4]} 8. O-O {[%clk 0:02:54.4]} 8... dxe5
{[%clk 0:02:52.9]} 9. e4 {[%clk 0:02:48.9]} 9... a6 {[%clk 0:02:49.3]} 10. Bxc6
{[%clk 0:02:47.7]} 10... Nxc6 {[%clk 0:02:49.1]} 11. h3 {[%clk 0:02:47.9]} 11...
b6 {[%clk 0:02:31.5]} 12. d3 {[%clk 0:02:47.7]} 12... f6 {[%clk 0:02:24.1]} 13.
Nbd2 {[%clk 0:02:46.2]} 13... Qe8 {[%clk 0:02:23.7]} 14. Nc4 {[%clk 0:02:43.9]}
14... Bb7 {[%clk 0:02:20.2]} 15. Ne3 {[%clk 0:02:44.1]} 15... Nd8 {[%clk
0:02:19.6]} 16. Qe1 {[%clk 0:02:42.9]} 16... Ne6 {[%clk 0:02:19.8]} 17. Kh2
{[%clk 0:02:36.1]} 17... Rd8 {[%clk 0:02:19.6]} 18. a4 {[%clk 0:02:29.6]} 18...
a5 {[%clk 0:02:18.2]} 19. Ng4 {[%clk 0:02:24.9]} 19... Nf4 {[%clk 0:02:13.7]}
20. Qh4 {[%clk 0:02:14.2]} 20... Qe6 {[%clk 0:02:09]} 21. Ne3 {[%clk 0:02:10]}
21... Nxd3 {[%clk 0:01:56.8]} 22. cxd3 {[%clk 0:02:09.6]} 22... Rxd3 {[%clk
0:01:57.7]} 23. Qf2 {[%clk 0:02:01.3]} 23... Bxe4 {[%clk 0:01:47.3]} 24. Nd2
{[%clk 0:01:47.9]} 24... Bb7 {[%clk 0:01:47]} 25. Nec4 {[%clk 0:01:25.9]} 25...
f5 {[%clk 0:01:38.7]} 26. Rae1 {[%clk 0:01:24.9]} 26... Rfd8 {[%clk 0:01:31.6]}
27. Bxe5 {[%clk 0:01:15.9]} 27... Rxd2 {[%clk 0:01:01.5]} 28. Nxd2 {[%clk
0:01:01.9]} 28... Bxe5+ {[%clk 0:01:01.4]} 29. Kh1 {[%clk 0:01:00.8]} 29... Qf6
{[%clk 0:00:41.5]} 30. Nc4 {[%clk 0:00:56.1]} 30... Bd4 {[%clk 0:00:31.6]} 31.
Qg3 {[%clk 0:00:51.9]} 31... Qf7 {[%clk 0:00:24.2]} 32. Re2 {[%clk 0:00:38.6]}
32... Bf6 {[%clk 0:00:11.6]} 33. Rfe1 {[%clk 0:00:34.9]} 33... Bd5 {[%clk
0:00:11.6]} 34. Qf4 {[%clk 0:00:30.2]} 34... Bc6 {[%clk 0:00:09.5]} 35. Ne5
{[%clk 0:00:30.5]} 35... Bxe5 {[%clk 0:00:07.9]} 36. Rxe5 {[%clk 0:00:29.6]}
36... Qxb3 {[%clk 0:00:07.3]} 37. Qh6 {[%clk 0:00:23.5]} 37... Qg3 {[%clk
0:00:04.6]} 38. R5e2 {[%clk 0:00:16.7]} 38... Bxg2+ {[%clk 0:00:04.6]} 39. Kg1
{[%clk 0:00:16.1]} 39... Bf3+ {[%clk 0:00:04.7]} 40. Kf1 {[%clk 0:00:13.1]}
40... Bxe2+ {[%clk 0:00:05.1]} 41. Kxe2 {[%clk 0:00:13.8]} 41... Re8+ {[%clk
0:00:04.6]} 42. Kd2 {[%clk 0:00:13.9]} 42... Qxe1+ {[%clk 0:00:04.9]} 0-1

[Event "*** SCC Grand Prix: Titled Tuesday Blitz"]
[Site "Chess.com"]
[Date "2020.09.08"]
[Round "6"]
[White "BJthechessgod"]
[Black "KetiGrant"]
[Result "0-1"]
[WhiteElo "2214"]
[BlackElo "2346"]
[TimeControl "180+1"]
[EndTime "11:08:02 PDT"]
[Termination "KetiGrant won on time"]

1. e4 {[%clk 0:02:46.7]} 1... c5 {[%clk 0:02:59.3]} 2. Nf3 {[%clk 0:02:43.2]}
2... Nc6 {[%clk 0:02:59.2]} 3. d4 {[%clk 0:02:43.4]} 3... cxd4 {[%clk
0:02:58.5]} 4. Nxd4 {[%clk 0:02:44.3]} 4... e5 {[%clk 0:02:58.5]} 5. Nb5 {[%clk
0:02:43.8]} 5... d6 {[%clk 0:02:58.5]} 6. c4 {[%clk 0:02:43.7]} 6... Be7 {[%clk
0:02:57.5]} 7. N1c3 {[%clk 0:02:43.5]} 7... a6 {[%clk 0:02:57.3]} 8. Na3 {[%clk
0:02:43.6]} 8... Nf6 {[%clk 0:02:57.8]} 9. Be2 {[%clk 0:02:43.2]} 9... O-O
{[%clk 0:02:56.1]} 10. Bg5 {[%clk 0:02:42.8]} 10... Ne8 {[%clk 0:02:50.9]} 11.
Bxe7 {[%clk 0:02:41.3]} 11... Nxe7 {[%clk 0:02:50.5]} 12. O-O {[%clk 0:02:41.3]}
12... g6 {[%clk 0:02:46]} 13. Nc2 {[%clk 0:02:40.2]} 13... f5 {[%clk 0:02:45.3]}
14. Ne3 {[%clk 0:02:38.8]} 14... f4 {[%clk 0:02:44.3]} 15. Ned5 {[%clk
0:02:38.5]} 15... Nc6 {[%clk 0:02:39.9]} 16. Bg4 {[%clk 0:02:38.4]} 16... Nd4
{[%clk 0:02:37.4]} 17. Bxc8 {[%clk 0:02:34.4]} 17... Rxc8 {[%clk 0:02:37.2]} 18.
Ne2 {[%clk 0:02:31.9]} 18... Rxc4 {[%clk 0:02:34.1]} 19. Nxd4 {[%clk 0:02:29.7]}
19... Rxd4 {[%clk 0:02:33.9]} 20. Qb3 {[%clk 0:02:28.1]} 20... Kh8 {[%clk
0:02:32.6]} 21. f3 {[%clk 0:02:24]} 21... b5 {[%clk 0:02:29.1]} 22. Rac1 {[%clk
0:02:19.6]} 22... Nf6 {[%clk 0:02:26.1]} 23. Nb4 {[%clk 0:02:12]} 23... Qb6
{[%clk 0:02:16.6]} 24. Kh1 {[%clk 0:02:11.8]} 24... Rd2 {[%clk 0:02:13.4]} 25.
Qc3 {[%clk 0:01:59]} 25... Rf2 {[%clk 0:01:55.5]} 26. Rxf2 {[%clk 0:01:49.4]}
26... Qxf2 {[%clk 0:01:55]} 27. Nxa6 {[%clk 0:01:44.5]} 27... Nh5 {[%clk
0:01:36]} 28. Qe1 {[%clk 0:01:24]} 28... Qxb2 {[%clk 0:01:33.9]} 29. Nb4 {[%clk
0:01:20.3]} 29... Nf6 {[%clk 0:01:30.8]} 30. Rc2 {[%clk 0:01:12.1]} 30... Qd4
{[%clk 0:01:28.8]} 31. Nc6 {[%clk 0:01:08.3]} 31... Qb6 {[%clk 0:01:28]} 32. Qd2
{[%clk 0:00:54.4]} 32... Ne8 {[%clk 0:00:28.2]} 33. Ne7 {[%clk 0:00:34.5]} 33...
g5 {[%clk 0:00:27.7]} 34. Nf5 {[%clk 0:00:30.4]} 34... g4 {[%clk 0:00:24.9]} 35.
Rc8 {[%clk 0:00:22.8]} 35... gxf3 {[%clk 0:00:21.6]} 36. gxf3 {[%clk 0:00:18.6]}
36... Rg8 {[%clk 0:00:22]} 37. Qe1 {[%clk 0:00:18.6]} 37... Qa6 {[%clk
0:00:17.3]} 38. Rd8 {[%clk 0:00:16.6]} 38... Qxa2 {[%clk 0:00:16.2]} 39. Qf1
{[%clk 0:00:16.9]} 39... Qb3 {[%clk 0:00:13.4]} 40. Nxd6 {[%clk 0:00:15.2]}
40... Nxd6 {[%clk 0:00:11]} 41. Rxd6 {[%clk 0:00:15.7]} 41... b4 {[%clk
0:00:10.5]} 42. Rb6 {[%clk 0:00:06.4]} 42... Qc3 {[%clk 0:00:10.1]} 43. Rb5
{[%clk 0:00:02.2]} 43... b3 {[%clk 0:00:09.9]} 44. Rb7 {[%clk 0:00:02.2]} 44...
b2 {[%clk 0:00:09.9]} 45. h4 {[%clk 0:00:02.3]} 45... Qd2 {[%clk 0:00:08]} 0-1

[Event "*** SCC Grand Prix: Titled Tuesday Blitz"]
[Site "Chess.com"]
[Date "2020.09.08"]
[Round "6"]
[White "Ariadna_Atreides"]
[Black "Shuvalov"]
[Result "1-0"]
[WhiteElo "2073"]
[BlackElo "2445"]
[TimeControl "180+1"]
[EndTime "11:08:03 PDT"]
[Termination "Ariadna_Atreides won on time"]

1. d4 {[%clk 0:03:00.9]} 1... Nf6 {[%clk 0:02:42.3]} 2. Nf3 {[%clk 0:02:59.8]}
2... g6 {[%clk 0:02:40.7]} 3. c4 {[%clk 0:02:57.8]} 3... c5 {[%clk 0:02:40.1]}
4. d5 {[%clk 0:02:48.7]} 4... b5 {[%clk 0:02:39.9]} 5. cxb5 {[%clk 0:02:46.7]}
5... a6 {[%clk 0:02:39.8]} 6. b6 {[%clk 0:02:46.1]} 6... Bg7 {[%clk 0:02:38.5]}
7. Nc3 {[%clk 0:02:45.4]} 7... d6 {[%clk 0:02:38.1]} 8. Nd2 {[%clk 0:02:44.2]}
8... Qxb6 {[%clk 0:02:29.9]} 9. e4 {[%clk 0:02:42.9]} 9... O-O {[%clk
0:02:28.8]} 10. Be2 {[%clk 0:02:41.9]} 10... Nbd7 {[%clk 0:02:24.5]} 11. O-O
{[%clk 0:02:37.2]} 11... Qb8 {[%clk 0:02:15.6]} 12. Nc4 {[%clk 0:02:31.4]} 12...
a5 {[%clk 0:02:12.8]} 13. a4 {[%clk 0:02:20.4]} 13... Ba6 {[%clk 0:02:09.8]} 14.
Qc2 {[%clk 0:02:19.1]} 14... Qb4 {[%clk 0:01:55.1]} 15. Na3 {[%clk 0:02:11.1]}
15... Bxe2 {[%clk 0:01:47.9]} 16. Qxe2 {[%clk 0:02:11.8]} 16... Ne5 {[%clk
0:01:36.4]} 17. f4 {[%clk 0:01:56.1]} 17... Ned7 {[%clk 0:01:22.6]} 18. h3
{[%clk 0:01:16.9]} 18... e6 {[%clk 0:01:02.4]} 19. dxe6 {[%clk 0:00:56.1]} 19...
fxe6 {[%clk 0:01:02]} 20. Ncb5 {[%clk 0:00:56.6]} 20... Nxe4 {[%clk 0:00:53.6]}
21. Nc2 {[%clk 0:00:53.9]} 21... Qb3 {[%clk 0:00:24.3]} 22. Qxe4 {[%clk
0:00:52]} 22... Nf6 {[%clk 0:00:23.5]} 23. Qe2 {[%clk 0:00:48.7]} 23... d5
{[%clk 0:00:19.6]} 24. Ra3 {[%clk 0:00:24.2]} 24... Qc4 {[%clk 0:00:19.4]} 25.
Qxc4 {[%clk 0:00:24.6]} 25... dxc4 {[%clk 0:00:20.3]} 26. Re3 {[%clk 0:00:18.8]}
26... Nd5 {[%clk 0:00:19]} 27. Rxe6 {[%clk 0:00:18]} 27... Rae8 {[%clk
0:00:17.4]} 28. Rxe8 {[%clk 0:00:17.2]} 28... Rxe8 {[%clk 0:00:18.3]} 29. Kf2
{[%clk 0:00:14]} 29... Nb4 {[%clk 0:00:17.2]} 30. Ne3 {[%clk 0:00:10.2]} 30...
Nd3+ {[%clk 0:00:15.6]} 31. Kf3 {[%clk 0:00:08]} 31... Rf8 {[%clk 0:00:14.1]}
32. Nxc4 {[%clk 0:00:07.3]} 32... Rd8 {[%clk 0:00:06.1]} 33. Ncd6 {[%clk
0:00:06.6]} 33... Bxb2 {[%clk 0:00:03.4]} 34. Bxb2 {[%clk 0:00:05.6]} 34... Nxb2
{[%clk 0:00:04.3]} 35. Re1 {[%clk 0:00:05.3]} 35... Nxa4 {[%clk 0:00:04]} 36.
Re8+ {[%clk 0:00:04.6]} 36... Rxe8 {[%clk 0:00:04.4]} 37. Nxe8 {[%clk
0:00:05.5]} 37... Kf7 {[%clk 0:00:04.2]} 38. Ned6+ {[%clk 0:00:04.9]} 38... Ke6
{[%clk 0:00:04.4]} 39. Nc4 {[%clk 0:00:05.1]} 39... Kd5 {[%clk 0:00:03.5]} 40.
Nba3 {[%clk 0:00:03.1]} 40... Kd4 {[%clk 0:00:01.2]} 41. g4 {[%clk 0:00:02.3]}
1-0

[Event "*** SCC Grand Prix: Titled Tuesday Blitz"]
[Site "Chess.com"]
[Date "2020.09.08"]
[Round "6"]
[White "Deepweb2020"]
[Black "dosto07"]
[Result "0-1"]
[WhiteElo "2207"]
[BlackElo "2314"]
[TimeControl "180+1"]
[EndTime "11:08:03 PDT"]
[Termination "dosto07 won on time"]

1. d4 {[%clk 0:03:00.1]} 1... d5 {[%clk 0:02:54.9]} 2. c4 {[%clk 0:02:57.1]}
2... dxc4 {[%clk 0:02:54.9]} 3. e3 {[%clk 0:02:57.2]} 3... Nf6 {[%clk
0:02:54.9]} 4. Bxc4 {[%clk 0:02:57]} 4... e6 {[%clk 0:02:55.2]} 5. Nf3 {[%clk
0:02:56.2]} 5... a6 {[%clk 0:02:54.1]} 6. O-O {[%clk 0:02:52.6]} 6... b5 {[%clk
0:02:50.8]} 7. Bb3 {[%clk 0:02:50.4]} 7... Bb7 {[%clk 0:02:49.6]} 8. Qc2 {[%clk
0:02:49.1]} 8... Nbd7 {[%clk 0:02:44.5]} 9. Bd2 {[%clk 0:02:48.3]} 9... c5
{[%clk 0:02:43.8]} 10. dxc5 {[%clk 0:02:42.6]} 10... Bxc5 {[%clk 0:02:41.9]} 11.
Bc3 {[%clk 0:02:29]} 11... O-O {[%clk 0:02:37.2]} 12. Nbd2 {[%clk 0:02:27.8]}
12... Rc8 {[%clk 0:02:34.5]} 13. a3 {[%clk 0:02:16.6]} 13... a5 {[%clk
0:02:30.3]} 14. Qb1 {[%clk 0:02:07.6]} 14... b4 {[%clk 0:02:24.4]} 15. axb4
{[%clk 0:02:04.6]} 15... axb4 {[%clk 0:02:24.3]} 16. Bd4 {[%clk 0:02:03]} 16...
Qe7 {[%clk 0:02:19.9]} 17. Rc1 {[%clk 0:01:57.7]} 17... h6 {[%clk 0:02:15.5]}
18. Qd3 {[%clk 0:01:54.8]} 18... e5 {[%clk 0:02:10.4]} 19. Bxc5 {[%clk
0:01:31.5]} 19... Nxc5 {[%clk 0:01:44]} 20. Qc2 {[%clk 0:01:31.4]} 20... e4
{[%clk 0:01:36.7]} 21. Nd4 {[%clk 0:01:24.3]} 21... Nd3 {[%clk 0:01:34.9]} 22.
Qd1 {[%clk 0:01:22.8]} 22... Rxc1 {[%clk 0:01:27.5]} 23. Rxc1 {[%clk 0:01:23.4]}
23... Nxc1 {[%clk 0:01:27.3]} 24. Qxc1 {[%clk 0:01:23.7]} 24... Rc8 {[%clk
0:01:26.2]} 25. Qa1 {[%clk 0:01:23]} 25... Qc5 {[%clk 0:01:23.9]} 26. Qa2 {[%clk
0:01:20]} 26... Qc7 {[%clk 0:01:03.2]} 27. h3 {[%clk 0:01:13.3]} 27... Ra8
{[%clk 0:00:58.2]} 28. Qb1 {[%clk 0:01:09.2]} 28... Rc8 {[%clk 0:00:54.7]} 29.
Qa2 {[%clk 0:01:09]} 29... g6 {[%clk 0:00:43.1]} 30. Qa4 {[%clk 0:01:01.8]}
30... Qc1+ {[%clk 0:00:37.9]} 31. Nf1 {[%clk 0:00:59.4]} 31... Bd5 {[%clk
0:00:31.5]} 32. Qxb4 {[%clk 0:00:38.8]} 32... Qxb2 {[%clk 0:00:28.4]} 33. Qe7
{[%clk 0:00:24.4]} 33... Bxb3 {[%clk 0:00:27.3]} 34. Nxb3 {[%clk 0:00:13.2]}
34... Qxb3 {[%clk 0:00:26.5]} 35. Qxf6 {[%clk 0:00:13.8]} 35... Qb1 {[%clk
0:00:23]} 36. Qa6 {[%clk 0:00:04]} 36... Rc1 {[%clk 0:00:22.1]} 37. g3 {[%clk
0:00:03.5]} 37... h5 {[%clk 0:00:21.7]} 38. h4 {[%clk 0:00:03.2]} 38... Kg7
{[%clk 0:00:21.6]} 39. Kg2 {[%clk 0:00:03.5]} 39... Qd3 {[%clk 0:00:21.6]} 40.
Qxd3 {[%clk 0:00:01.1]} 40... exd3 {[%clk 0:00:21.2]} 41. Nd2 {[%clk 0:00:01.2]}
41... Rc2 {[%clk 0:00:19.9]} 42. Ne4 {[%clk 0:00:01.2]} 42... d2 {[%clk
0:00:19.2]} 43. Kf1 {[%clk 0:00:01.5]} 43... d1=Q+ {[%clk 0:00:19]} 0-1

[Event "*** SCC Grand Prix: Titled Tuesday Blitz"]
[Site "Chess.com"]
[Date "2020.09.08"]
[Round "6"]
[White "LiemLe"]
[Black "Maghalashvili"]
[Result "1-0"]
[WhiteElo "2977"]
[BlackElo "2736"]
[TimeControl "180+1"]
[EndTime "11:08:07 PDT"]
[Termination "LiemLe won by resignation"]

1. d4 {[%clk 0:03:00.9]} 1... d5 {[%clk 0:02:59.9]} 2. Bf4 {[%clk 0:02:56.6]}
2... Nf6 {[%clk 0:02:59.7]} 3. e3 {[%clk 0:02:54.6]} 3... e6 {[%clk 0:03:00.6]}
4. Nd2 {[%clk 0:02:52.9]} 4... Bd6 {[%clk 0:03:01.5]} 5. Ngf3 {[%clk 0:02:50.4]}
5... c5 {[%clk 0:03:00.1]} 6. c3 {[%clk 0:02:50]} 6... Nc6 {[%clk 0:03:00.2]} 7.
Bb5 {[%clk 0:02:45.6]} 7... Bxf4 {[%clk 0:02:52.8]} 8. exf4 {[%clk 0:02:45.2]}
8... Qb6 {[%clk 0:02:47.3]} 9. Qe2 {[%clk 0:02:32.3]} 9... O-O {[%clk
0:02:42.7]} 10. dxc5 {[%clk 0:02:31.6]} 10... Qxc5 {[%clk 0:02:42.3]} 11. O-O
{[%clk 0:02:26.5]} 11... Bd7 {[%clk 0:02:40.9]} 12. Nb3 {[%clk 0:02:25.9]} 12...
Qb6 {[%clk 0:02:25.8]} 13. Rad1 {[%clk 0:02:23.7]} 13... Na5 {[%clk 0:02:18]}
14. Bxd7 {[%clk 0:02:19]} 14... Nxd7 {[%clk 0:02:12.5]} 15. f5 {[%clk
0:02:18.2]} 15... Nxb3 {[%clk 0:01:58.7]} 16. axb3 {[%clk 0:02:19.1]} 16... Nc5
{[%clk 0:01:36.6]} 17. b4 {[%clk 0:02:14.8]} 17... Ne4 {[%clk 0:01:35.3]} 18.
Nd4 {[%clk 0:02:12.8]} 18... Rfe8 {[%clk 0:01:22.6]} 19. fxe6 {[%clk 0:02:03.1]}
19... fxe6 {[%clk 0:01:21.7]} 20. Kh1 {[%clk 0:01:58.2]} 20... e5 {[%clk
0:01:01.5]} 21. Nb3 {[%clk 0:01:52.1]} 21... Rad8 {[%clk 0:00:59.4]} 22. f3
{[%clk 0:01:48]} 22... Nf6 {[%clk 0:00:59.1]} 23. Rfe1 {[%clk 0:01:46.5]} 23...
Kh8 {[%clk 0:00:56.7]} 24. Nc5 {[%clk 0:01:45.6]} 24... Qc7 {[%clk 0:00:51.1]}
25. Qf2 {[%clk 0:01:26.8]} 25... b6 {[%clk 0:00:49.1]} 26. Nd3 {[%clk
0:01:26.9]} 26... e4 {[%clk 0:00:48.1]} 27. Nc1 {[%clk 0:01:23.8]} 27... Rf8
{[%clk 0:00:36.7]} 28. Qg3 {[%clk 0:01:12.2]} 28... Qf7 {[%clk 0:00:36.3]} 29.
Rf1 {[%clk 0:01:08.1]} 29... e3 {[%clk 0:00:29.4]} 30. Ne2 {[%clk 0:01:02.5]}
30... Nh5 {[%clk 0:00:28.6]} 31. Qh4 {[%clk 0:00:59.9]} 31... Nf4 {[%clk
0:00:23.1]} 32. Qxf4 {[%clk 0:00:56.3]} 32... Qxf4 {[%clk 0:00:24]} 33. Nxf4
{[%clk 0:00:57]} 33... Rxf4 {[%clk 0:00:23.5]} 34. Rfe1 {[%clk 0:00:57]} 34...
h6 {[%clk 0:00:08.1]} 35. Rxe3 {[%clk 0:00:56.6]} 35... Rf5 {[%clk 0:00:08.3]}
36. Rd4 {[%clk 0:00:54.3]} 36... Rc8 {[%clk 0:00:05.5]} 37. Kg1 {[%clk
0:00:51.2]} 37... a5 {[%clk 0:00:05.3]} 38. Re6 {[%clk 0:00:48.9]} 38... axb4
{[%clk 0:00:04.9]} 39. Rxb4 {[%clk 0:00:49.8]} 39... Rg5 {[%clk 0:00:03.6]} 40.
h4 {[%clk 0:00:47.4]} 40... Rh5 {[%clk 0:00:02.8]} 41. Rexb6 {[%clk 0:00:46.4]}
41... Re5 {[%clk 0:00:02]} 42. Rb8 {[%clk 0:00:41.4]} 42... Rce8 {[%clk
0:00:02.9]} 43. Rxe8+ {[%clk 0:00:41.1]} 43... Rxe8 {[%clk 0:00:03.8]} 44. Kf2
{[%clk 0:00:41.6]} 44... Kh7 {[%clk 0:00:03.3]} 45. Rd4 {[%clk 0:00:41.1]} 45...
Rb8 {[%clk 0:00:03.1]} 46. Rd2 {[%clk 0:00:36.6]} 46... Rc8 {[%clk 0:00:03.1]}
47. Ke3 {[%clk 0:00:36.2]} 47... Re8+ {[%clk 0:00:02.6]} 48. Kd4 {[%clk
0:00:35.4]} 48... Kg6 {[%clk 0:00:03.5]} 49. b4 {[%clk 0:00:33]} 49... Kh5
{[%clk 0:00:04]} 50. g3 {[%clk 0:00:33]} 50... Rf8 {[%clk 0:00:04.5]} 51. Rd3
{[%clk 0:00:33.1]} 51... Rc8 {[%clk 0:00:02.9]} 52. Kxd5 {[%clk 0:00:32.9]}
52... g5 {[%clk 0:00:02.1]} 53. hxg5 {[%clk 0:00:32.5]} 53... Kxg5 {[%clk
0:00:03]} 54. b5 {[%clk 0:00:31.4]} 54... h5 {[%clk 0:00:03.9]} 55. b6 {[%clk
0:00:30.2]} 55... Rd8+ {[%clk 0:00:03.9]} 56. Kc4 {[%clk 0:00:30.2]} 56... Rb8
{[%clk 0:00:04]} 57. Rd5+ {[%clk 0:00:28.9]} 1-0